[Event "Late-Titled-Tuesday-Blitz-February-27-2024"]
[Site "Chess.com"]
[Date "2024.02.27"]
[Round "11"]
[White "AlexTruskavetsky"]
[Black "maximnovik"]
[Result "0-1"]
[WhiteElo "2688"]
[BlackElo "2610"]
[TimeControl "180+1"]
[EndTime "16:06:37 PST"]
[Termination "maximnovik won by checkmate"]

1. d4 {[%clk 0:03:00.9]} 1... Nf6 {[%clk 0:02:58.9]} 2. c4 {[%clk 0:03:00.1]}
2... g6 {[%clk 0:02:59.4]} 3. Nc3 {[%clk 0:02:59.7]} 3... d5 {[%clk 0:03:00]} 4.
cxd5 {[%clk 0:03:00.2]} 4... Nxd5 {[%clk 0:03:00.5]} 5. e4 {[%clk 0:03:00.9]}
5... Nxc3 {[%clk 0:03:01.1]} 6. bxc3 {[%clk 0:03:01.8]} 6... Bg7 {[%clk
0:03:01.6]} 7. Nf3 {[%clk 0:03:02.2]} 7... c5 {[%clk 0:03:02.2]} 8. Be2 {[%clk
0:03:02.9]} 8... Nc6 {[%clk 0:03:01.2]} 9. Be3 {[%clk 0:03:02.3]} 9... Bg4
{[%clk 0:03:00.5]} 10. O-O {[%clk 0:02:30.7]} 10... Bxf3 {[%clk 0:02:59.9]} 11.
Bxf3 {[%clk 0:02:31.6]} 11... cxd4 {[%clk 0:02:59.6]} 12. cxd4 {[%clk
0:02:32.5]} 12... Nxd4 {[%clk 0:02:57.3]} 13. Rb1 {[%clk 0:02:32.6]} 13... b6
{[%clk 0:02:25.1]} 14. Qa4+ {[%clk 0:02:28.3]} 14... Qd7 {[%clk 0:02:09.1]} 15.
Qxd7+ {[%clk 0:02:27.3]} 15... Kxd7 {[%clk 0:02:09.5]} 16. Bxd4 {[%clk
0:02:27.8]} 16... Bxd4 {[%clk 0:02:08.4]} 17. e5 {[%clk 0:02:28.7]} 17... Bxe5
{[%clk 0:02:06.3]} 18. Bxa8 {[%clk 0:02:27.9]} 18... Rxa8 {[%clk 0:02:06.8]} 19.
Rfd1+ {[%clk 0:02:28.2]} 19... Bd6 {[%clk 0:02:06.2]} 20. Rbc1 {[%clk
0:02:28.8]} 20... b5 {[%clk 0:02:03.2]} 21. Kf1 {[%clk 0:02:28.7]} 21... a5
{[%clk 0:02:02.2]} 22. Ke2 {[%clk 0:02:27.6]} 22... b4 {[%clk 0:01:49.1]} 23.
Kd3 {[%clk 0:02:24.3]} 23... Rb8 {[%clk 0:01:44.7]} 24. Kc4 {[%clk 0:02:19.3]}
24... a4 {[%clk 0:01:41.3]} 25. g3 {[%clk 0:02:19.1]} 25... f5 {[%clk 0:01:28]}
26. Rb1 {[%clk 0:02:15.5]} 26... Ke6 {[%clk 0:01:26.2]} 27. Re1+ {[%clk
0:02:15.3]} 27... Kf6 {[%clk 0:01:25.9]} 28. Kd3 {[%clk 0:02:15.6]} 28... g5
{[%clk 0:01:20.8]} 29. f3 {[%clk 0:02:14.2]} 29... h5 {[%clk 0:01:20.1]} 30. Re2
{[%clk 0:02:02.4]} 30... g4 {[%clk 0:01:19.9]} 31. f4 {[%clk 0:02:01.8]} 31...
h4 {[%clk 0:01:15.5]} 32. Kc4 {[%clk 0:01:49.4]} 32... Rc8+ {[%clk 0:01:11.4]}
33. Kb5 {[%clk 0:01:47.9]} 33... Rc3 {[%clk 0:01:01.5]} 34. Rg1 {[%clk
0:01:42.9]} 34... a3 {[%clk 0:00:59.5]} 35. Ka4 {[%clk 0:01:43]} 35... Rf3
{[%clk 0:00:52.8]} 36. Rgg2 {[%clk 0:01:36.5]} 36... Bc5 {[%clk 0:00:49.8]} 37.
Rc2 {[%clk 0:01:28.3]} 37... Bd6 {[%clk 0:00:46.3]} 38. Rgf2 {[%clk 0:01:19.1]}
38... hxg3 {[%clk 0:00:28.8]} 39. Rxf3 {[%clk 0:01:17.6]} 39... gxf3 {[%clk
0:00:28.9]} 40. hxg3 {[%clk 0:01:18.5]} 40... e5 {[%clk 0:00:29.1]} 41. fxe5+
{[%clk 0:01:03.2]} 41... Kxe5 {[%clk 0:00:28.6]} 42. Kb3 {[%clk 0:00:36.7]}
42... Ke4 {[%clk 0:00:28.2]} 43. Rc1 {[%clk 0:00:36.8]} 43... Bxg3 {[%clk
0:00:27.6]} 44. Kc2 {[%clk 0:00:36.8]} 44... f2 {[%clk 0:00:26.7]} 45. Rf1
{[%clk 0:00:35.5]} 45... Kf3 {[%clk 0:00:25.8]} 46. Kd3 {[%clk 0:00:32.5]} 46...
Be5 {[%clk 0:00:20.3]} 47. Rb1 {[%clk 0:00:32.7]} 47... b3 {[%clk 0:00:19.6]}
48. Rxb3 {[%clk 0:00:15.5]} 48... f1=Q+ {[%clk 0:00:18.3]} 49. Kc2+ {[%clk
0:00:15.1]} 49... Ke4 {[%clk 0:00:18.1]} 50. Rxa3 {[%clk 0:00:16]} 50... Qe2+
{[%clk 0:00:17.7]} 51. Kb3 {[%clk 0:00:15.4]} 51... Qb2+ {[%clk 0:00:18.1]} 52.
Ka4 {[%clk 0:00:15.8]} 52... Bc3 {[%clk 0:00:17.8]} 53. Rb3 {[%clk 0:00:10]}
53... Qxa2+ {[%clk 0:00:17.8]} 54. Kb5 {[%clk 0:00:10.9]} 54... Qxb3+ {[%clk
0:00:18.3]} 55. Ka6 {[%clk 0:00:11.8]} 55... Qb4 {[%clk 0:00:18.9]} 56. Ka7
{[%clk 0:00:12.7]} 56... Kd5 {[%clk 0:00:18.5]} 57. Ka8 {[%clk 0:00:13.6]} 57...
Kc6 {[%clk 0:00:19.1]} 58. Ka7 {[%clk 0:00:14]} 58... Qb7# {[%clk 0:00:19.6]}
0-1

[Event "Late-Titled-Tuesday-Blitz-February-27-2024"]
[Site "Chess.com"]
[Date "2024.02.27"]
[Round "11"]
[White "Cambek64"]
[Black "GoltsevDmitry2000"]
[Result "1-0"]
[WhiteElo "2504"]
[BlackElo "2721"]
[TimeControl "180+1"]
[EndTime "16:06:40 PST"]
[Termination "Cambek64 won by checkmate"]

1. e4 {[%clk 0:02:53.9]} 1... e6 {[%clk 0:02:59.6]} 2. d4 {[%clk 0:02:50.1]}
2... d5 {[%clk 0:03:00.5]} 3. exd5 {[%clk 0:02:50]} 3... exd5 {[%clk 0:03:00.3]}
4. c3 {[%clk 0:02:50]} 4... Nf6 {[%clk 0:03:01.2]} 5. Bd3 {[%clk 0:02:49]} 5...
c5 {[%clk 0:03:02.1]} 6. Ne2 {[%clk 0:02:46.6]} 6... Nc6 {[%clk 0:03:02.2]} 7.
O-O {[%clk 0:02:42.5]} 7... Bd6 {[%clk 0:03:02.4]} 8. dxc5 {[%clk 0:02:41.8]}
8... Bxc5 {[%clk 0:03:02.6]} 9. Nd2 {[%clk 0:02:42.1]} 9... O-O {[%clk
0:03:02.5]} 10. Nb3 {[%clk 0:02:42.7]} 10... Bb6 {[%clk 0:03:03.1]} 11. Bg5
{[%clk 0:02:37.7]} 11... Bg4 {[%clk 0:03:00.8]} 12. Qc2 {[%clk 0:02:27.4]} 12...
h6 {[%clk 0:03:00.4]} 13. Bh4 {[%clk 0:02:19]} 13... Re8 {[%clk 0:03:00.6]} 14.
h3 {[%clk 0:02:07.4]} 14... Bxe2 {[%clk 0:03:00.4]} 15. Bxe2 {[%clk 0:02:06.5]}
15... Qd6 {[%clk 0:03:01.3]} 16. Bxf6 {[%clk 0:01:59.7]} 16... Qxf6 {[%clk
0:03:00.3]} 17. Rad1 {[%clk 0:01:56.1]} 17... Rad8 {[%clk 0:02:55.8]} 18. Bf3
{[%clk 0:01:50.3]} 18... Qf4 {[%clk 0:02:55.7]} 19. Qd2 {[%clk 0:01:24.5]} 19...
Qh4 {[%clk 0:02:45.6]} 20. Rfe1 {[%clk 0:01:17.8]} 20... Ne5 {[%clk 0:02:44.1]}
21. Bxd5 {[%clk 0:01:15.2]} 21... Re6 {[%clk 0:01:41.3]} 22. Re4 {[%clk
0:01:08.1]} 22... Nf3+ {[%clk 0:01:28.5]} 23. gxf3 {[%clk 0:01:07]} 23... Qg3+
{[%clk 0:01:28.3]} 24. Kf1 {[%clk 0:01:06.1]} 24... Qxh3+ {[%clk 0:01:23.9]} 25.
Ke2 {[%clk 0:01:05.3]} 25... Qg2 {[%clk 0:00:54]} 26. Rf1 {[%clk 0:01:00.4]}
26... Rf6 {[%clk 0:00:48.9]} 27. Qd3 {[%clk 0:00:41]} 27... h5 {[%clk
0:00:38.9]} 28. c4 {[%clk 0:00:39.4]} 28... Bc7 {[%clk 0:00:31.3]} 29. Nd4
{[%clk 0:00:35.8]} 29... Bf4 {[%clk 0:00:26.6]} 30. Nc2 {[%clk 0:00:30.1]} 30...
Kh8 {[%clk 0:00:21]} 31. Ne1 {[%clk 0:00:29.6]} 31... Qh2 {[%clk 0:00:18.8]} 32.
Qd4 {[%clk 0:00:28.1]} 32... h4 {[%clk 0:00:16.5]} 33. Nd3 {[%clk 0:00:23.9]}
33... Bg5 {[%clk 0:00:16.7]} 34. Rg4 {[%clk 0:00:21.1]} 34... Re8+ {[%clk
0:00:16.3]} 35. Kd1 {[%clk 0:00:20]} 35... Rf5 {[%clk 0:00:14.7]} 36. f4 {[%clk
0:00:17.7]} 36... Bh6 {[%clk 0:00:13.3]} 37. Rh1 {[%clk 0:00:13.8]} 37... Rxd5
{[%clk 0:00:03.6]} 38. Qxd5 {[%clk 0:00:11.6]} 38... Qxh1+ {[%clk 0:00:02.5]}
39. Qxh1 {[%clk 0:00:10.8]} 39... Rd8 {[%clk 0:00:03.4]} 40. Kc2 {[%clk
0:00:10]} 40... f5 {[%clk 0:00:04.3]} 41. Rxh4 {[%clk 0:00:09.3]} 41... Rd6
{[%clk 0:00:04.8]} 42. Rxh6+ {[%clk 0:00:09.4]} 42... gxh6 {[%clk 0:00:05.7]}
43. Qh5 {[%clk 0:00:07.6]} 43... Rf6 {[%clk 0:00:05.1]} 44. Ne5 {[%clk 0:00:07]}
44... Kg7 {[%clk 0:00:05.7]} 45. c5 {[%clk 0:00:05]} 45... b6 {[%clk 0:00:06]}
46. Qe8 {[%clk 0:00:05.2]} 46... bxc5 {[%clk 0:00:06.1]} 47. Qe7+ {[%clk
0:00:05.8]} 47... Rf7 {[%clk 0:00:05.5]} 48. Qxf7+ {[%clk 0:00:05.3]} 48... Kh8
{[%clk 0:00:06.4]} 49. Ng6# {[%clk 0:00:04.9]} 1-0

[Event "Late-Titled-Tuesday-Blitz-February-27-2024"]
[Site "Chess.com"]
[Date "2024.02.27"]
[Round "11"]
[White "Binary010"]
[Black "jaskol95"]
[Result "1-0"]
[WhiteElo "2799"]
[BlackElo "2571"]
[TimeControl "180+1"]
[EndTime "16:06:41 PST"]
[Termination "Binary010 won by checkmate"]

1. d4 {[%clk 0:03:00.9]} 1... d5 {[%clk 0:02:57.8]} 2. c4 {[%clk 0:03:00.7]}
2... e5 {[%clk 0:02:58.5]} 3. dxe5 {[%clk 0:03:00.4]} 3... d4 {[%clk 0:02:59.4]}
4. Nf3 {[%clk 0:03:00.7]} 4... Nc6 {[%clk 0:03:00.1]} 5. a3 {[%clk 0:03:01.1]}
5... a5 {[%clk 0:03:00.8]} 6. e3 {[%clk 0:02:52.8]} 6... Bc5 {[%clk 0:02:58.4]}
7. exd4 {[%clk 0:02:44.7]} 7... Bxd4 {[%clk 0:02:57.7]} 8. Be2 {[%clk
0:02:23.5]} 8... Bf5 {[%clk 0:02:44.4]} 9. O-O {[%clk 0:02:22]} 9... Bxe5 {[%clk
0:02:43.6]} 10. Nxe5 {[%clk 0:02:17.6]} 10... Nxe5 {[%clk 0:02:42]} 11. Nc3
{[%clk 0:02:13.5]} 11... Qxd1 {[%clk 0:02:38.5]} 12. Rxd1 {[%clk 0:02:13.8]}
12... Ne7 {[%clk 0:02:29]} 13. Nb5 {[%clk 0:01:41.9]} 13... Rc8 {[%clk
0:02:27.8]} 14. Bf4 {[%clk 0:01:42]} 14... N7g6 {[%clk 0:02:26.7]} 15. Bxe5
{[%clk 0:01:41.5]} 15... Nxe5 {[%clk 0:02:24]} 16. Rd5 {[%clk 0:01:42.2]} 16...
f6 {[%clk 0:02:19.1]} 17. f4 {[%clk 0:01:42.2]} 17... Be6 {[%clk 0:01:57.5]} 18.
fxe5 {[%clk 0:01:36.6]} 18... Bxd5 {[%clk 0:01:57.9]} 19. cxd5 {[%clk
0:01:37.3]} 19... fxe5 {[%clk 0:01:58.4]} 20. Bg4 {[%clk 0:01:36.6]} 20... Rd8
{[%clk 0:01:54.8]} 21. Re1 {[%clk 0:01:35.1]} 21... O-O {[%clk 0:01:50.3]} 22.
Nxc7 {[%clk 0:01:31.1]} 22... h5 {[%clk 0:01:34.5]} 23. Be6+ {[%clk 0:01:28.8]}
23... Kh7 {[%clk 0:01:34.5]} 24. Rxe5 {[%clk 0:01:29.6]} 24... Rd6 {[%clk
0:01:30.9]} 25. Rxh5+ {[%clk 0:01:27.3]} 25... Kg6 {[%clk 0:01:31.1]} 26. Re5
{[%clk 0:01:27.8]} 26... Rb6 {[%clk 0:01:31.1]} 27. Re2 {[%clk 0:01:26.3]} 27...
Rf4 {[%clk 0:01:24.8]} 28. Rd2 {[%clk 0:01:17.3]} 28... Rd6 {[%clk 0:01:22]} 29.
Nb5 {[%clk 0:01:14.7]} 29... Rd8 {[%clk 0:01:22.2]} 30. d6 {[%clk 0:01:13]}
30... Kf6 {[%clk 0:01:22.7]} 31. Bh3 {[%clk 0:01:03.9]} 31... g5 {[%clk
0:01:16.7]} 32. g3 {[%clk 0:01:02.1]} 32... Rc4 {[%clk 0:01:15.4]} 33. Bf1
{[%clk 0:01:00.4]} 33... Rc5 {[%clk 0:01:14.4]} 34. a4 {[%clk 0:00:58.4]} 34...
Ke5 {[%clk 0:01:13.7]} 35. b3 {[%clk 0:00:55.4]} 35... Rc1 {[%clk 0:01:12.6]}
36. Kg2 {[%clk 0:00:55.3]} 36... Rf8 {[%clk 0:01:12.5]} 37. Bc4 {[%clk
0:00:52.2]} 37... g4 {[%clk 0:01:02.3]} 38. Re2+ {[%clk 0:00:51.2]} 38... Kf6
{[%clk 0:00:59.4]} 39. Rf2+ {[%clk 0:00:47.4]} 39... Kg7 {[%clk 0:00:59.8]} 40.
Rxf8 {[%clk 0:00:44]} 40... Kxf8 {[%clk 0:01:00.7]} 41. Kf2 {[%clk 0:00:40]}
41... Ke8 {[%clk 0:01:00.2]} 42. Ke3 {[%clk 0:00:39.9]} 42... Kd7 {[%clk
0:01:00.6]} 43. Kf4 {[%clk 0:00:39.5]} 43... Rh1 {[%clk 0:00:58.9]} 44. Be2
{[%clk 0:00:36.4]} 44... Rxh2 {[%clk 0:00:55.2]} 45. Bxg4+ {[%clk 0:00:37.1]}
45... Kd8 {[%clk 0:00:54.7]} 46. Bf3 {[%clk 0:00:35]} 46... b6 {[%clk
0:00:53.8]} 47. g4 {[%clk 0:00:35.2]} 47... Kd7 {[%clk 0:00:51.6]} 48. g5 {[%clk
0:00:35.4]} 48... Rh8 {[%clk 0:00:50.1]} 49. Bg4+ {[%clk 0:00:35.2]} 49... Kd8
{[%clk 0:00:50.6]} 50. g6 {[%clk 0:00:35.4]} 50... Rf8+ {[%clk 0:00:50.2]} 51.
Ke5 {[%clk 0:00:33.9]} 51... Rf7 {[%clk 0:00:29.6]} 52. Nd4 {[%clk 0:00:26.2]}
52... Rf1 {[%clk 0:00:28.3]} 53. Nc6+ {[%clk 0:00:24.9]} 53... Ke8 {[%clk
0:00:28.2]} 54. d7+ {[%clk 0:00:25.3]} 54... Kf8 {[%clk 0:00:28.9]} 55. d8=Q+
{[%clk 0:00:25.4]} 55... Kg7 {[%clk 0:00:29.8]} 56. Bf5 {[%clk 0:00:22.4]} 56...
Re1+ {[%clk 0:00:29.3]} 57. Kf4 {[%clk 0:00:21.8]} 57... Rf1+ {[%clk 0:00:29.3]}
58. Kg5 {[%clk 0:00:22.1]} 58... Rg1+ {[%clk 0:00:29.7]} 59. Bg4 {[%clk
0:00:22.5]} 59... Rxg4+ {[%clk 0:00:27.4]} 60. Kxg4 {[%clk 0:00:22.6]} 60... Kh6
{[%clk 0:00:27.8]} 61. Ne5 {[%clk 0:00:19.3]} 61... Kg7 {[%clk 0:00:28.2]} 62.
Kg5 {[%clk 0:00:19.2]} 62... b5 {[%clk 0:00:26.6]} 63. Qe7+ {[%clk 0:00:18.9]}
63... Kg8 {[%clk 0:00:25.3]} 64. axb5 {[%clk 0:00:14.6]} 64... a4 {[%clk
0:00:25.1]} 65. b4 {[%clk 0:00:14.9]} 65... a3 {[%clk 0:00:25.4]} 66. b6 {[%clk
0:00:12.8]} 66... a2 {[%clk 0:00:25.7]} 67. Qf7+ {[%clk 0:00:13]} 67... Kh8
{[%clk 0:00:25.5]} 68. b7 {[%clk 0:00:12.3]} 68... a1=N {[%clk 0:00:24.9]} 69.
b8=Q# {[%clk 0:00:12]} 1-0

[Event "Late-Titled-Tuesday-Blitz-February-27-2024"]
[Site "Chess.com"]
[Date "2024.02.27"]
[Round "11"]
[White "secretsuperstar7"]
[Black "Vigg-Sama"]
[Result "0-1"]
[WhiteElo "2501"]
[BlackElo "2300"]
[TimeControl "180+1"]
[EndTime "16:06:44 PST"]
[Termination "Vigg-Sama won on time"]

1. c4 {[%clk 0:02:58.5]} 1... g6 {[%clk 0:02:58.7]} 2. Nc3 {[%clk 0:02:58.3]}
2... c5 {[%clk 0:02:58]} 3. g3 {[%clk 0:02:56.9]} 3... Bg7 {[%clk 0:02:57.6]} 4.
Bg2 {[%clk 0:02:57.4]} 4... Nc6 {[%clk 0:02:55.3]} 5. Nf3 {[%clk 0:02:57.6]}
5... e6 {[%clk 0:02:54.4]} 6. O-O {[%clk 0:02:54.6]} 6... Nge7 {[%clk
0:02:53.7]} 7. a3 {[%clk 0:02:49.1]} 7... O-O {[%clk 0:02:50.8]} 8. Rb1 {[%clk
0:02:43.9]} 8... d5 {[%clk 0:02:50.3]} 9. d3 {[%clk 0:02:40.6]} 9... a5 {[%clk
0:02:42.8]} 10. Bf4 {[%clk 0:02:31.7]} 10... e5 {[%clk 0:02:16.8]} 11. cxd5
{[%clk 0:02:18.6]} 11... exf4 {[%clk 0:02:16.6]} 12. dxc6 {[%clk 0:02:18.2]}
12... fxg3 {[%clk 0:02:16.3]} 13. hxg3 {[%clk 0:02:13.4]} 13... Nxc6 {[%clk
0:02:15.3]} 14. Ne4 {[%clk 0:02:12.9]} 14... b6 {[%clk 0:02:13.8]} 15. Qb3
{[%clk 0:02:02.5]} 15... Be6 {[%clk 0:02:01]} 16. Qa4 {[%clk 0:01:54.5]} 16...
Rc8 {[%clk 0:01:56.8]} 17. Neg5 {[%clk 0:01:40.7]} 17... Ba2 {[%clk 0:01:53.3]}
18. Ra1 {[%clk 0:01:29]} 18... Bd5 {[%clk 0:01:48.4]} 19. e4 {[%clk 0:01:27.3]}
19... Be6 {[%clk 0:01:46.2]} 20. Nxe6 {[%clk 0:01:26.4]} 20... fxe6 {[%clk
0:01:46.4]} 21. Qc4 {[%clk 0:01:16.7]} 21... Qd6 {[%clk 0:01:17.8]} 22. Rab1
{[%clk 0:01:06.9]} 22... Rxf3 {[%clk 0:01:17.1]} 23. Bxf3 {[%clk 0:01:04.9]}
23... Ne5 {[%clk 0:01:17.4]} 24. Qa6 {[%clk 0:00:39]} 24... Nxf3+ {[%clk
0:01:16.9]} 25. Kg2 {[%clk 0:00:39.4]} 25... Rf8 {[%clk 0:01:17.6]} 26. Rh1
{[%clk 0:00:37.9]} 26... Bd4 {[%clk 0:01:08.4]} 27. Qb7 {[%clk 0:00:34.8]} 27...
Rf7 {[%clk 0:01:03.7]} 28. Qc8+ {[%clk 0:00:28.1]} 28... Kg7 {[%clk 0:01:04.1]}
29. Rxh7+ {[%clk 0:00:23.7]} 29... Kf6 {[%clk 0:00:28.7]} 30. Rxf7+ {[%clk
0:00:22.8]} 30... Kxf7 {[%clk 0:00:29.6]} 31. Kxf3 {[%clk 0:00:22.3]} 31... e5
{[%clk 0:00:28.8]} 32. Qb7+ {[%clk 0:00:17.9]} 32... Kf8 {[%clk 0:00:25.6]} 33.
Kg2 {[%clk 0:00:15.8]} 33... Qf6 {[%clk 0:00:18]} 34. Rf1 {[%clk 0:00:15.6]}
34... g5 {[%clk 0:00:18]} 35. Qc8+ {[%clk 0:00:14.7]} 35... Kg7 {[%clk
0:00:17.7]} 36. Qd7+ {[%clk 0:00:14.8]} 36... Kg6 {[%clk 0:00:17.4]} 37. Qe8+
{[%clk 0:00:10]} 37... Kg7 {[%clk 0:00:17.6]} 38. Qd7+ {[%clk 0:00:09.1]} 38...
Kg6 {[%clk 0:00:18.1]} 39. Qf5+ {[%clk 0:00:08.9]} 39... Qxf5 {[%clk 0:00:18.5]}
40. exf5+ {[%clk 0:00:09.4]} 40... Kxf5 {[%clk 0:00:19.2]} 41. Kf3 {[%clk
0:00:09.9]} 41... g4+ {[%clk 0:00:19]} 42. Ke2 {[%clk 0:00:10.2]} 42... e4
{[%clk 0:00:19.6]} 43. dxe4+ {[%clk 0:00:10.2]} 43... Kxe4 {[%clk 0:00:20.5]}
44. Rh1 {[%clk 0:00:10.3]} 44... Bxb2 {[%clk 0:00:20.1]} 45. a4 {[%clk
0:00:07.9]} 45... c4 {[%clk 0:00:18.8]} 46. Kd1 {[%clk 0:00:08]} 46... Kf3
{[%clk 0:00:18.8]} 47. Kc2 {[%clk 0:00:07]} 47... Ba3 {[%clk 0:00:19]} 48. Rh2
{[%clk 0:00:05.6]} 48... Bc5 {[%clk 0:00:18.2]} 49. Kc3 {[%clk 0:00:05.7]} 49...
Bxf2 {[%clk 0:00:18.7]} 50. Kxc4 {[%clk 0:00:05.8]} 50... Kxg3 {[%clk
0:00:17.6]} 51. Rh7 {[%clk 0:00:05.3]} 51... Bc5 {[%clk 0:00:18.1]} 52. Rf7
{[%clk 0:00:04.7]} 52... Kh3 {[%clk 0:00:18.3]} 53. Rh7+ {[%clk 0:00:02.8]}
53... Kg2 {[%clk 0:00:18.5]} 54. Rg7 {[%clk 0:00:03.1]} 54... g3 {[%clk
0:00:19.4]} 55. Kd3 {[%clk 0:00:03.4]} 55... Kf1 {[%clk 0:00:18.6]} 56. Rf7+
{[%clk 0:00:03.4]} 56... Bf2 {[%clk 0:00:19.2]} 57. Rc7 {[%clk 0:00:01.7]} 57...
g2 {[%clk 0:00:18.4]} 58. Rc1+ {[%clk 0:00:01.3]} 58... Be1 {[%clk 0:00:19.1]}
0-1

[Event "Late-Titled-Tuesday-Blitz-February-27-2024"]
[Site "Chess.com"]
[Date "2024.02.27"]
[Round "11"]
[White "Inepton_Fermion"]
[Black "VinzentSpitzl"]
[Result "0-1"]
[WhiteElo "2444"]
[BlackElo "2531"]
[TimeControl "180+1"]
[EndTime "16:06:44 PST"]
[Termination "VinzentSpitzl won by checkmate"]

1. d4 {[%clk 0:02:57.3]} 1... d5 {[%clk 0:02:59.6]} 2. Nc3 {[%clk 0:02:57.4]}
2... Nf6 {[%clk 0:02:59.8]} 3. Bg5 {[%clk 0:02:57.6]} 3... Nbd7 {[%clk
0:02:58.1]} 4. Nf3 {[%clk 0:02:57.4]} 4... h6 {[%clk 0:02:57]} 5. Bh4 {[%clk
0:02:57.1]} 5... e6 {[%clk 0:02:51.9]} 6. e4 {[%clk 0:02:57]} 6... dxe4 {[%clk
0:02:51.7]} 7. Nxe4 {[%clk 0:02:56.3]} 7... Be7 {[%clk 0:02:48.5]} 8. Nxf6+
{[%clk 0:02:55.9]} 8... Bxf6 {[%clk 0:02:47.4]} 9. Bxf6 {[%clk 0:02:55.6]} 9...
Nxf6 {[%clk 0:02:47.4]} 10. Bd3 {[%clk 0:02:56.2]} 10... O-O {[%clk 0:02:46.8]}
11. Qe2 {[%clk 0:02:56.5]} 11... Bd7 {[%clk 0:02:46.5]} 12. Ne5 {[%clk
0:02:56.3]} 12... Bc6 {[%clk 0:02:45.8]} 13. Nxc6 {[%clk 0:02:56.3]} 13... bxc6
{[%clk 0:02:45.9]} 14. c3 {[%clk 0:02:56.8]} 14... c5 {[%clk 0:02:35.6]} 15.
dxc5 {[%clk 0:02:56]} 15... Qd5 {[%clk 0:02:35.7]} 16. O-O {[%clk 0:02:52.5]}
16... Qxc5 {[%clk 0:02:34.9]} 17. Rac1 {[%clk 0:02:19.8]} 17... Rfd8 {[%clk
0:02:33]} 18. Rfd1 {[%clk 0:02:17]} 18... g6 {[%clk 0:02:22.4]} 19. Qc2 {[%clk
0:02:05.7]} 19... Kg7 {[%clk 0:02:20.8]} 20. Be2 {[%clk 0:02:03]} 20... Rd6
{[%clk 0:02:17]} 21. Bf3 {[%clk 0:02:00.4]} 21... Rad8 {[%clk 0:02:16.3]} 22.
Qa4 {[%clk 0:01:49.2]} 22... e5 {[%clk 0:02:00.7]} 23. Rxd6 {[%clk 0:01:36.5]}
23... cxd6 {[%clk 0:01:57.5]} 24. Qc6 {[%clk 0:01:31.1]} 24... Qxc6 {[%clk
0:01:51.6]} 25. Bxc6 {[%clk 0:01:30.8]} 25... d5 {[%clk 0:01:51.8]} 26. a4
{[%clk 0:01:20.2]} 26... Kf8 {[%clk 0:01:42.7]} 27. b4 {[%clk 0:01:18.4]} 27...
Ke7 {[%clk 0:01:41.2]} 28. f3 {[%clk 0:01:11.6]} 28... Kd6 {[%clk 0:01:40]} 29.
b5 {[%clk 0:01:07.4]} 29... Kc5 {[%clk 0:01:39.1]} 30. Kf2 {[%clk 0:01:06.5]}
30... Ng8 {[%clk 0:01:33]} 31. Bb7 {[%clk 0:00:44.7]} 31... Ne7 {[%clk 0:01:29]}
32. Rb1 {[%clk 0:00:36.5]} 32... Rb8 {[%clk 0:01:12.8]} 33. Ba6 {[%clk
0:00:34.9]} 33... Nf5 {[%clk 0:01:04.7]} 34. g4 {[%clk 0:00:34.2]} 34... Nd6
{[%clk 0:01:04.4]} 35. h4 {[%clk 0:00:32.3]} 35... Nc4 {[%clk 0:00:55.5]} 36.
Ke2 {[%clk 0:00:30]} 36... Rg8 {[%clk 0:00:46.1]} 37. Bb7 {[%clk 0:00:27.7]}
37... f5 {[%clk 0:00:39.9]} 38. Rd1 {[%clk 0:00:26.5]} 38... Rd8 {[%clk
0:00:32.4]} 39. h5 {[%clk 0:00:14.3]} 39... gxh5 {[%clk 0:00:22.7]} 40. gxf5
{[%clk 0:00:13.7]} 40... Nb2 {[%clk 0:00:23]} 41. Rh1 {[%clk 0:00:11.7]} 41...
Nxa4 {[%clk 0:00:22.5]} 42. Rxh5 {[%clk 0:00:11.8]} 42... Nxc3+ {[%clk
0:00:19.4]} 43. Kd3 {[%clk 0:00:11.4]} 43... Nxb5 {[%clk 0:00:17.9]} 44. Rxh6
{[%clk 0:00:11.7]} 44... Nd6 {[%clk 0:00:17.4]} 45. Ba6 {[%clk 0:00:10]} 45...
Nxf5 {[%clk 0:00:16.2]} 46. Rf6 {[%clk 0:00:09.4]} 46... Nd6 {[%clk 0:00:15.7]}
47. Kd2 {[%clk 0:00:09.2]} 47... e4 {[%clk 0:00:14.4]} 48. fxe4 {[%clk
0:00:08.8]} 48... Nxe4+ {[%clk 0:00:14.6]} 49. Ke3 {[%clk 0:00:07.1]} 49... Nxf6
{[%clk 0:00:15]} 50. Bd3 {[%clk 0:00:07.4]} 50... d4+ {[%clk 0:00:15.1]} 51. Kf4
{[%clk 0:00:07.7]} 51... Nd5+ {[%clk 0:00:15.3]} 52. Ke5 {[%clk 0:00:08.2]}
52... Nb4 {[%clk 0:00:15.9]} 53. Ke6 {[%clk 0:00:08.8]} 53... Nxd3 {[%clk
0:00:15.2]} 54. Ke7 {[%clk 0:00:09.7]} 54... Rd5 {[%clk 0:00:15.5]} 55. Ke6
{[%clk 0:00:10.2]} 55... Nb4 {[%clk 0:00:16.4]} 56. Kf6 {[%clk 0:00:10.3]} 56...
d3 {[%clk 0:00:17.3]} 57. Ke7 {[%clk 0:00:11.2]} 57... d2 {[%clk 0:00:18.1]} 58.
Kf7 {[%clk 0:00:12.1]} 58... d1=Q {[%clk 0:00:18.5]} 59. Ke6 {[%clk 0:00:13]}
59... Qe2+ {[%clk 0:00:18.4]} 60. Kf6 {[%clk 0:00:13.9]} 60... Rd6+ {[%clk
0:00:18]} 61. Kf7 {[%clk 0:00:14.5]} 61... Qe6+ {[%clk 0:00:17.7]} 62. Kg7
{[%clk 0:00:15.4]} 62... Rd7+ {[%clk 0:00:17.8]} 63. Kf8 {[%clk 0:00:16.3]}
63... Qf7# {[%clk 0:00:18]} 0-1